bitfinex/quotes_ETHUSD_20250112
["timestamp","ask_amount","ask_price","bid_price","bid_amount"]
[1736675058291,0.225,3237.0,3236.5,2.16282]
[1736675066800,0.225,3237.0,3236.3,5.16294]
[1736675066994,0.04281552,3236.9,3236.3,5.16294]
[1736675067221,0.225,3237.0,3236.3,5.16294]
[1736675067534,0.04279712,3236.8,3236.3,5.16294]
[1736675067701,0.04281552,3236.9,3236.3,5.16294]
[1736675067901,0.225,3237.0,3236.3,5.16294]
[1736675068317,0.04281552,3236.9,3236.3,5.16294]
[1736675068698,0.225,3237.0,3236.3,5.16294]
[1736675069001,0.04281552,3236.9,3236.3,5.16294]
[1736675069238,0.225,3237.0,3236.3,3.0]
[1736675069395,0.225,3237.0,3236.3,5.16292]
[1736675069396,0.04275596,3236.8,3236.3,5.16292]
[1736675069602,0.46683518,3237.0,3236.3,5.16292]
[1736675069801,0.04268905,3236.7,3236.3,5.16292]
[1736675070157,0.46683518,3237.0,3236.3,5.16292]
[1736675070647,0.04272587,3236.9,3236.3,5.16292]
[1736675071748,0.04272587,3236.9,3236.3,5.6143365]
[1736675071908,0.04272587,3236.9,3236.4,0.03089415]
[1736675072108,2.16226,3237.4,3236.4,0.03089415]
[1736675072310,0.04275361,3236.8,3236.4,0.03089415]
[1736675072508,0.225,3237.0,3236.4,0.03089415]
[1736675072711,0.225,3237.0,3236.5,2.16281]
[1736675073031,0.225,3237.0,3236.6,0.03089328]
[1736675073647,0.225,3237.0,3236.5,2.16281]
[1736675079549,0.225,3237.0,3236.3,3.0]
[1736675079750,0.225,3237.0,3236.3,5.16292]
[1736675079956,0.225,3237.0,3236.4,2.16289]
[1736675080365,0.04273996,3236.9,3236.4,2.16289]
[1736675080753,0.225,3237.0,3236.4,2.16289]
[1736675081072,0.04273996,3236.9,3236.4,2.16289]
[1736675081284,0.225,3237.0,3236.4,2.16289]
[1736675081429,0.04273345,3236.9,3236.4,2.16289]
[1736675081776,0.225,3237.0,3236.4,2.16289]
[1736675082150,0.04273345,3236.9,3236.4,2.16289]
[1736675082450,0.225,3237.0,3236.4,2.16289]
[1736675082642,0.04273345,3236.9,3236.4,2.16289]
[1736675083069,0.225,3237.0,3236.4,2.16289]
[1736675083277,0.04273345,3236.9,3236.4,2.16289]
[1736675083476,0.225,3237.0,3236.4,2.16289]
[1736675083682,0.04273345,3236.9,3236.4,2.16289]
[1736675083987,0.225,3237.0,3236.4,2.16289]
[1736675084282,0.04273345,3236.9,3236.4,2.16289]
[1736675084452,0.225,3237.0,3236.5,0.03089325]
[1736675084657,0.04273345,3236.9,3236.5,0.03089325]
[1736675084847,0.225,3237.0,3236.2,9.6814365]
[1736675084848,0.225,3237.0,3236.2,9.23009]
[1736675085062,0.28149804,3236.9,3236.2,8.42299]
[1736675085467,0.238743,3236.9,3236.2,8.42299]
[1736675086679,0.225,3236.8,3236.2,8.42299]
[1736675095461,0.225,3236.8,3236.3,2.16296]
[1736675096399,0.225,3236.8,3236.2,6.26]
[1736675096698,0.225,3236.8,3236.2,0.89]
[1736675096699,5.0022965,3236.3,3236.2,0.89]
[1736675096874,9.09610305,3236.3,3236.2,0.89]
[1736675097198,9.08766121,3236.3,3236.2,0.89]
[1736675097383,6.87672902,3236.3,3236.2,0.89]
[1736675097585,6.47332471,3236.3,3236.2,0.89]
[1736675097900,1.08086471,3236.3,3236.2,0.89]
[1736675098201,0.26563506,3236.3,3236.2,0.89]
[1736675098556,0.3040769,3236.3,3236.2,0.89]
[1736675098763,0.27313506,3236.3,3236.2,0.89]
[1736675099168,0.2325,3236.3,3236.2,0.89]
[1736675099469,0.03833149,3236.3,3236.2,0.89]
[1736675099708,0.225,3236.5,3236.2,0.89]
[1736675100095,0.03852677,3236.3,3236.2,0.89]
[1736675100271,0.225,3236.5,3236.2,0.89]
[1736675100426,0.03849549,3236.4,3236.2,0.89]
[1736675101819,0.225,3236.8,3236.2,0.89]
[1736675102316,0.03884149,3236.7,3236.2,0.89]
[1736675102917,0.0075,3236.8,3236.2,0.89]
[1736675103125,0.03879828,3236.6,3236.2,0.89]
[1736675103430,0.03877988,3236.5,3236.2,0.89]
[1736675103601,0.0075,3236.6,3236.2,0.89]
[1736675103825,0.0386758,3236.5,3236.2,0.89]
[1736675104031,0.225,3236.4,3236.2,0.89]
[1736675104432,0.03873802,3236.3,3236.2,0.89]
[1736675105970,0.0075,3236.6,3236.2,0.89]
[1736675106169,0.03883,3236.3,3236.2,1.6591]
[1736675106333,0.449,3237.0,3236.2,3.85302727]
[1736675106535,1.3249,3237.0,3236.2,3.85302727]
[1736675106760,0.0075,3236.8,3236.2,3.85302727]
[1736675107068,0.0387689,3236.7,3236.2,3.85302727]
[1736675107452,0.0387689,3236.7,3236.2,3.82213]
[1736675107653,0.25594184,3237.0,3236.2,3.82213]
[1736675107858,0.03874698,3236.9,3236.2,3.82213]
[1736675108058,0.03874698,3236.9,3236.3,2.1629]
[1736675108229,0.25594184,3237.0,3236.3,2.1629]
[1736675108230,0.225,3237.0,3236.3,2.1629]
[1736675108433,0.03882533,3236.9,3236.3,2.1629]
[1736675108654,0.225,3237.0,3236.2,1.6591]
[1736675108860,0.03882533,3236.9,3236.4,2.16289]
[1736675109048,0.225,3237.0,3236.4,2.16289]
[1736675109259,0.03882533,3236.9,3236.4,2.16289]
[1736675109453,0.225,3237.0,3236.4,2.16289]
[1736675109662,0.03883853,3236.9,3236.2,4.6591]
[1736675109978,0.225,3237.7,3236.8,4.7769565]
[1736675110143,0.225,3237.7,3237.1,2.6143365]
[1736675110477,0.59141163,3237.6,3237.1,2.6143365]
[1736675110639,0.03791163,3237.6,3237.1,2.64522498]
[1736675111047,0.225,3237.7,3237.2,0.7691]
[1736675111249,0.015,3238.0,3237.3,2.16226]
[1736675111481,0.03799402,3237.9,3237.4,2.6143365]
[1736675112272,0.03799402,3237.9,3237.2,0.79998706]
[1736675112472,0.0075,3237.7,3236.9,3.3834365]
[1736675112674,0.0379754,3237.6,3236.9,2.6143365]
[1736675112837,0.28168624,3237.7,3236.9,2.6143365]
[1736675113039,0.03798175,3237.6,3236.9,2.6143365]
[1736675113350,0.28168624,3237.7,3236.9,2.6143365]
[1736675113746,0.03798175,3237.6,3236.9,4.7768865]
[1736675114065,0.0075,3237.7,3237.2,2.6143365]
[1736675114735,0.225,3237.8,3237.2,2.6143365]
[1736675115100,0.225,3238.1,3237.3,0.17498715]
[1736675115273,0.03806164,3238.0,3237.3,0.1441]
[1736675115434,0.06900348,3238.0,3237.3,0.1441]
[1736675115630,0.03806164,3238.0,3237.3,0.1441]
[1736675117291,0.03806164,3238.0,3237.2,4.7766565]
[1736675118177,0.03806164,3238.0,3237.2,2.6143365]
[1736675118381,0.30750529,3238.0,3237.2,2.6143365]
[1736675118681,0.03094184,3237.9,3237.2,2.6143365]
[1736675118890,0.03802487,3237.8,3237.2,2.6143365]
[1736675119077,0.30038549,3238.0,3237.2,2.6143365]
[1736675119248,0.03804326,3237.9,3237.2,2.6143365]
[1736675119451,0.03804326,3237.9,3237.2,4.7766965]
[1736675120171,0.03804326,3237.9,3237.2,2.6143365]
[1736675120681,0.03804326,3237.9,3237.3,0.03088666]
[1736675120867,0.225,3238.1,3237.6,2.6143365]
[1736675121059,0.03848019,3238.0,3237.6,2.6143365]
[1736675122819,0.03848019,3238.0,3237.5,0.79998456]
[1736675124291,0.03848019,3238.0,3237.6,2.6143365]
[1736675124519,0.03848019,3238.0,3237.7,0.03088428]
[1736675125394,0.015,3237.9,3237.6,2.6143365]
[1736675125592,0.03848019,3238.0,3237.1,3.0]
[1736675125593,0.766,3237.8,3237.1,3.0]
[1736675125794,0.80436793,3237.8,3237.3,2.6143365]
[1736675126001,0.03836793,3237.8,3237.3,2.6143365]
[1736675126308,0.766,3238.0,3237.3,2.6143365]
[1736675126309,0.766,3238.0,3237.5,2.16214]
[1736675126510,0.766,3238.0,3237.3,2.6143365]
[1736675126511,0.03863996,3237.9,3237.6,0.03088353]
[1736675126722,0.03863996,3237.9,3237.6,2.19296353]
[1736675126925,0.7735,3238.5,3237.7,0.7534]
[1736675127200,1.060245,3238.5,3237.9,2.6143365]
[1736675127406,0.766,3238.5,3238.0,0.0308799]
[1736675129428,0.766,3238.5,3238.0,2.1926999]
[1736675129625,3.62954345,3238.9,3238.0,2.1926999]
[1736675129825,0.766,3238.8,3238.1,2.91514]
[1736675130026,0.766,3238.8,3238.2,0.03087731]
[1736675130229,0.766,3238.8,3238.2,2.19255731]
[1736675130409,0.766,3238.8,3238.2,2.16168]
[1736675130584,0.766,3238.8,3238.2,2.19255712]
[1736675130776,0.766,3238.8,3238.2,0.03087712]
[1736675131012,0.766,3238.8,3238.2,2.64521362]
[1736675131374,0.766,3238.8,3238.2,10.17684362]
[1736675131724,7.4707,3239.7,3238.2,10.17684362]
[1736675131725,0.766,3239.0,3238.5,4.7757965]
[1736675132015,5.31,3239.7,3238.6,2.94569378]
[1736675132016,0.03893425,3238.9,3238.6,2.94569378]
[1736675132390,0.766,3239.3,3238.6,6.15427378]
[1736675132601,0.766,3239.7,3239.1,2.16108]
[1736675132945,0.03912952,3239.6,3239.2,0.03086785]
[1736675133100,0.03912952,3239.6,3239.1,0.7534]
[1736675133285,0.03912952,3239.6,3239.2,0.03086787]
[1736675133620,0.03912952,3239.6,3239.1,0.7534]
[1736675133980,0.03912952,3239.6,3239.2,0.03086787]
[1736675134193,0.03912952,3239.6,3239.1,0.7534]
[1736675134602,0.03912952,3239.6,3239.1,5.5288265]
[1736675134803,0.03912952,3239.6,3239.2,0.03086731]
[1736675135164,0.03902021,3239.5,3239.2,0.03086714]
[1736675135479,0.015,3240.1,3239.2,0.03086714]
[1736675135845,0.766,3240.4,3239.4,10.1452065]
[1736675135846,0.03920298,3240.0,3239.4,10.1452065]
[1736675136001,0.03920298,3240.0,3239.5,2.16082]
[1736675136200,0.79694184,3240.4,3239.5,2.16082]
[1736675136545,0.03971827,3240.3,3239.6,0.7534]
[1736675136898,0.03971827,3240.3,3239.7,2.6451994]
[1736675137083,0.03971827,3240.3,3239.7,2.6143365]
[1736675137546,0.03971827,3240.3,3239.8,2.19147117]
[1736675137737,0.03971827,3240.3,3239.7,2.6143365]
[1736675138236,0.79694184,3240.6,3239.7,2.6143365]
[1736675138398,0.04031445,3240.2,3239.7,2.6143365]
[1736675138594,0.79694184,3240.6,3239.7,2.6143365]
[1736675138927,0.04036955,3240.5,3239.7,2.6143365]
[1736675139440,0.04036955,3240.5,3239.7,4.7750065]
[1736675140215,0.04036955,3240.5,3239.8,0.03085982]
[1736675140403,0.04036955,3240.5,3239.7,4.7750165]
[1736675141200,0.3370095,3240.5,3239.6,0.7534]
[1736675141401,0.766,3239.7,3239.4,5.37]
[1736675141603,2.16082,3239.5,3238.8,7.9843365]
[1736675142070,0.03994058,3239.4,3238.8,2.6143365]
[1736675142350,0.03994058,3239.4,3238.5,0.89]
[1736675142351,2.16109,3239.1,3238.5,0.89]
[1736675142839,0.07065584,3239.0,3238.5,0.89]
[1736675143056,0.039714,3239.0,3238.5,0.92087455]
[1736675143338,2.93447,3239.3,3238.5,3.53521105]
[1736675143499,0.03949239,3238.9,3238.5,3.53521105]
[1736675143701,0.7735,3239.3,3238.5,0.92087455]
[1736675143908,2.20056176,3239.2,3238.5,0.92087455]
[1736675144338,0.03954176,3239.2,3238.5,0.92087455]
[1736675144535,0.03954176,3239.2,3238.5,0.89]
[1736675146049,0.03954176,3239.2,3238.6,0.0308732]
[1736675147150,0.7735,3239.3,3238.6,0.8117]
[1736675147356,2.19198184,3239.2,3238.5,0.89]
[1736675147558,2.48853002,3239.2,3238.5,0.89]
[1736675147756,0.03908921,3239.1,3238.5,0.89]
[1736675148621,0.03908921,3239.1,3238.6,0.03087446]
[1736675148828,0.7735,3239.3,3238.6,0.03087446]
[1736675149041,0.03910154,3239.2,3238.6,0.03087446]
[1736675149242,0.03910154,3239.2,3238.5,0.89]
[1736675149624,0.03910154,3239.2,3238.7,2.6143365]
[1736675149847,0.03910154,3239.2,3238.8,0.03087072]
[1736675150047,0.0075,3239.5,3238.8,0.03087072]
[1736675150248,0.8214,3239.6,3238.9,2.97291]
[1736675150657,0.03930688,3239.5,3239.2,2.161]
[1736675150961,0.8214,3239.9,3239.3,0.03086593]
[1736675151166,0.8214,3239.9,3239.3,2.16089]
[1736675151340,0.03800155,3239.8,3239.5,0.8117]
[1736675151536,0.8214,3240.2,3239.5,0.8117]
[1736675151861,0.8214,3240.2,3239.5,2.97248]
[1736675152363,0.0385531,3240.1,3239.5,0.8117]
[1736675152540,0.0385531,3240.1,3239.5,2.97251]
[1736675153371,0.8214,3240.4,3239.5,2.97251]
[1736675153569,0.03876974,3240.0,3239.5,2.97251]
[1736675153773,0.8214,3240.4,3239.5,2.97251]
[1736675153982,0.0387874,3239.9,3239.5,2.97251]
[1736675154173,0.8214,3240.4,3239.5,2.97251]
[1736675154685,0.0388083,3240.3,3239.3,4.7752665]
[1736675154871,2.1605,3240.0,3239.2,0.8117]
[1736675155078,0.03876508,3239.9,3239.2,0.8117]
[1736675157491,0.03876508,3239.9,3239.3,0.0308662]
[1736675157793,2.98928,3240.2,3239.2,0.8117]
[1736675157794,0.03094184,3240.1,3239.2,0.8117]
[1736675157959,0.03880534,3239.8,3239.3,0.0308662]
[1736675158295,0.8289,3240.2,3239.3,2.16095]
[1736675158491,0.03886678,3240.1,3239.3,2.16095]
[1736675159293,0.06980862,3240.1,3239.1,8.37]
[1736675159502,2.9819,3240.0,3239.1,8.37]
[1736675159792,0.06977037,3239.9,3239.1,8.37]
[1736675160613,0.015,3239.5,3238.8,5.37]
[1736675160833,0.0075,3239.2,3238.5,0.89]
[1736675161029,2.16121,3239.0,3238.5,0.89]
[1736675161195,0.03094184,3238.9,3238.5,0.89]
[1736675161531,0.0384944,3238.9,3238.5,0.89]
[1736675162105,0.8214,3238.8,3238.5,0.89]
[1736675162299,0.85234184,3238.8,3238.5,0.89]
[1736675162498,0.03844977,3238.7,3238.5,0.89]
[1736675163010,0.85234184,3238.8,3238.5,0.89]
[1736675163512,0.03843719,3238.7,3238.5,0.89]
[1736675163708,0.85234184,3238.8,3238.5,0.89]
[1736675163909,0.03843719,3238.7,3238.5,0.89]
[1736675164540,0.03838946,3238.6,3238.5,0.89]
[1736675164700,3.01364184,3238.8,3238.5,0.89]
[1736675164901,0.03837663,3238.7,3238.5,0.89]
[1736675165100,3.01364184,3238.8,3238.5,0.89]
[1736675165441,3.00002,3238.6,3238.5,0.89]
[1736675165608,3.03096184,3238.6,3238.5,0.89]
[1736675165939,3.06826044,3238.6,3238.5,0.89]
[1736675166092,3.67953557,3238.6,3238.5,0.89]
[1736675166716,3.64859373,3238.6,3238.5,0.89]
[1736675166934,4.2710637,3238.6,3238.5,0.89]
[1736675169965,4.2710637,3238.6,3238.5,0.265]
[1736675172531,4.2635637,3238.6,3238.5,0.265]
[1736675173062,1.51061557,3238.6,3238.5,0.265]
[1736675174362,0.8608986,3238.6,3238.5,0.265]
[1736675174564,0.0372986,3238.6,3238.5,0.265]
[1736675175261,2.1987186,3238.6,3238.5,0.265]
[1736675175485,0.0372986,3238.6,3238.5,0.265]
[1736675175692,0.0372986,3238.6,3238.5,0.525]
[1736675178490,0.0372986,3238.6,3238.0,0.73244177]
[1736675178794,0.06824044,3238.6,3238.0,0.73244177]
[1736675179156,0.0372986,3238.6,3238.0,0.73244177]
[1736675179856,0.0372986,3238.6,3238.1,0.03087887]
[1736675180291,0.7586,3239.0,3238.1,2.64521535]
[1736675180492,0.03717762,3238.9,3238.4,2.6143365]
[1736675180695,2.16063,3239.8,3238.5,2.19236299]
[1736675180696,2.16085,3239.5,3238.5,2.19236299]
[1736675180854,0.03725114,3239.3,3238.5,2.19236299]
[1736675181560,0.03725114,3239.3,3238.6,0.784]
[1736675181760,0.03725114,3239.3,3238.7,0.03087257]
[1736675182658,0.03725114,3239.3,3238.7,4.80654907]
[1736675182910,3.56294577,3239.7,3238.7,10.1456765]
[1736675183118,0.03727454,3239.6,3238.7,10.1456765]
[1736675183313,0.03727454,3239.6,3238.8,0.784]
[1736675183520,0.03727454,3239.6,3238.8,2.94528]
[1736675187049,0.03727454,3239.6,3238.9,2.16121]
[1736675187390,0.03727454,3239.6,3239.0,2.64520385]
[1736675187596,0.03727454,3239.6,3239.1,0.812]
[1736675187895,0.03828582,3239.5,3239.2,0.03086735]
[1736675188121,0.7998,3239.9,3239.2,0.03086735]
[1736675188434,0.03834094,3239.8,3239.1,2.97307]
[1736675189031,0.03834094,3239.8,3239.1,8.34307]
[1736675189434,0.03834094,3239.8,3239.3,2.16094]
[1736675189635,0.03834094,3239.8,3239.4,0.812]
[1736675189849,0.7998,3240.4,3239.4,2.97284]
[1736675189995,0.83074184,3240.4,3239.4,2.97284]
[1736675190202,0.03869855,3240.3,3239.4,2.97284]
[1736675193568,2.19898855,3240.3,3239.4,8.34284]
[1736675193718,2.19132184,3240.2,3239.4,6.182]
[1736675193920,2.19931573,3240.1,3239.4,6.182]
[1736675194156,2.16043,3240.1,3239.4,6.182]
[1736675194344,0.03886736,3240.0,3239.4,6.182]
[1736675194542,2.2303092,3240.0,3239.4,6.182]
[1736675195268,0.03886736,3240.0,3239.4,6.182]
[1736675195624,0.7998,3239.9,3239.4,5.37]
[1736675195968,0.03094184,3239.8,3239.4,5.37]
[1736675196167,0.03881224,3239.7,3239.4,5.37]
[1736675196464,0.03094184,3239.8,3239.4,5.37]
[1736675196869,0.03873962,3239.7,3239.4,5.37]
[1736675197238,0.03094184,3239.8,3239.4,5.37]
[1736675197441,0.03872125,3239.6,3239.4,5.37]
[1736675197653,0.03094184,3239.8,3239.4,5.37]
[1736675197861,0.7998,3239.6,3239.4,5.37]
[1736675198143,0.04623631,3239.5,3238.5,2.97347]
[1736675198308,0.03094184,3239.4,3238.5,2.97347]
[1736675198510,0.03886763,3239.3,3238.5,2.97347]
[1736675198713,0.03094184,3239.4,3238.5,2.97347]
[1736675198910,0.03886763,3239.3,3238.5,2.97347]
[1736675199105,0.03094184,3239.4,3238.5,2.97347]
[1736675199312,0.03886763,3239.3,3238.5,2.97347]
[1736675199546,2.1609,3239.4,3238.5,2.97347]
[1736675199851,0.7998,3239.2,3238.5,0.812]
[1736675200056,0.03094184,3239.1,3238.3,6.182]
[1736675200259,2.16123,3238.9,3238.1,0.32222492]
[1736675200417,2.19224184,3238.8,3238.1,0.32222492]
[1736675200766,2.23101757,3238.8,3238.1,0.32222492]
[1736675201064,2.96117,3238.7,3238.1,0.32222492]
[1736675201272,0.03094184,3238.6,3238.1,0.32222492]
[1736675201558,0.06929195,3238.6,3238.1,0.32222492]
[1736675202303,2.23072195,3238.6,3238.1,0.32222492]
[1736675202542,2.17651,3238.5,3238.1,0.32222492]
[1736675202757,0.29067349,3238.4,3238.1,0.32222492]
[1736675204077,2.16919,3238.2,3238.1,0.32222492]
[1736675204364,3.0063522,3238.2,3238.1,0.32222492]
[1736675206362,0.015,3238.1,3237.1,0.7632]
[1736675206569,0.015,3237.9,3237.1,0.7632]
[1736675206768,0.0365597,3237.8,3237.1,0.7632]
[1736675206930,0.06750154,3237.8,3237.1,0.7632]
[1736675207133,0.03094184,3237.8,3237.1,0.7632]
[1736675207332,0.0365413,3237.7,3237.1,0.7632]
[1736675207532,0.03094184,3237.8,3237.1,0.7632]
[1736675207735,0.03660845,3237.7,3237.1,0.7632]
[1736675208069,0.04594184,3237.9,3237.1,0.7632]
[1736675208366,0.03662074,3237.8,3237.1,0.7632]
[1736675211864,0.7686,3237.3,3236.5,0.7632]
[1736675212155,0.03566481,3237.2,3236.5,0.7632]
[1736675212326,0.06660665,3237.2,3236.5,0.7632]
[1736675212533,0.03566481,3237.2,3236.5,0.7632]
[1736675212732,0.06660665,3237.2,3236.4,5.37]
[1736675214362,0.06660665,3237.2,3236.4,7.53289]
[1736675214666,0.7686,3237.3,3236.6,2.16275]
[1736675214962,0.03446448,3237.2,3236.6,2.16275]
[1736675215118,0.7686,3237.3,3236.6,2.16275]
[1736675215461,0.03448873,3237.2,3236.5,0.79409317]
[1736675215617,0.03448873,3237.2,3236.6,2.16272]
[1736675215818,0.7686,3237.6,3236.7,0.03089154]
[1736675216055,0.7686,3237.6,3237.0,0.7632]
[1736675216360,0.03340458,3237.5,3237.1,2.19329817]
[1736675216574,0.7686,3237.8,3237.1,2.16241]
[1736675216780,0.03235463,3237.7,3237.1,2.16241]
[1736675216983,0.03235463,3237.7,3237.1,2.6143365]
[1736675217188,0.03235463,3237.7,3237.5,2.16215]
[1736675217392,0.7686,3238.1,3237.5,0.7632]
[1736675217757,0.0328864,3238.0,3237.7,2.16197]
[1736675217972,0.7686,3238.3,3237.5,2.92535]
[1736675218146,0.03298558,3238.2,3237.5,2.92535]
[1736675218352,0.7686,3238.3,3237.5,2.92535]
[1736675218693,0.03320482,3238.2,3237.5,2.92535]
[1736675219063,0.7686,3238.3,3237.5,2.92535]
[1736675219480,0.03317381,3238.2,3237.5,2.92535]
[1736675219846,0.7686,3238.3,3237.6,2.16208]
[1736675220367,0.06412341,3238.2,3237.3,5.37]
[1736675221062,0.06412341,3238.2,3237.4,2.16222]
[1736675221249,0.03318157,3238.2,3237.5,0.03088258]
[1736675221450,0.03318157,3238.2,3237.7,0.7632]
[1736675221781,0.7686,3238.3,3237.7,0.7632]
[1736675221782,0.03325072,3238.1,3237.7,0.79408256]
[1736675222165,0.7686,3238.3,3237.7,0.79408256]
[1736675222496,0.03326135,3238.2,3237.7,0.7632]
[1736675223098,0.7686,3238.3,3237.7,0.7632]
[1736675223599,0.03328087,3238.2,3237.8,0.03088105]
[1736675223762,0.03328087,3238.2,3238.0,2.16181]
[1736675223967,0.7686,3238.6,3238.0,2.16181]
[1736675224163,0.03258392,3238.5,3238.0,2.16181]
[1736675224371,0.03258392,3238.5,3238.1,0.030878]
[1736675224571,0.03258392,3238.5,3238.2,0.7685]
[1736675224773,0.758,3239.1,3238.3,2.1616]
[1736675224972,0.03268359,3239.0,3238.3,2.1616]
[1736675226077,0.03268359,3239.0,3238.2,0.7685]
[1736675226392,0.03268359,3239.0,3238.3,0.03087449]
[1736675226564,0.03268359,3239.0,3238.2,0.7685]
[1736675226764,0.03268359,3239.0,3238.4,2.16155]
[1736675227460,0.03268359,3239.0,3238.5,0.0308743]
[1736675227878,0.03268359,3239.0,3238.5,2.1923243]
[1736675228077,0.03268359,3239.0,3238.6,3.3828365]
[1736675228411,0.758,3239.8,3238.9,3.3828365]
[1736675228732,0.758,3239.8,3238.9,8.7528365]
[1736675228879,0.03313479,3239.7,3239.4,2.16089]
[1736675229087,0.758,3240.1,3239.4,2.92939]
[1736675229297,0.758,3240.1,3239.1,2.16102]
[1736675229501,0.03318031,3240.0,3239.1,2.16102]
[1736675229705,0.06412215,3240.0,3239.1,2.16102]
[1736675230617,0.03318031,3240.0,3239.2,2.16098]
[1736675230772,0.03318031,3240.0,3239.3,2.19179507]
[1736675231988,0.03318031,3240.0,3239.3,0.03086507]
[1736675232219,0.03318031,3240.0,3239.4,2.16087]
[1736675232373,0.03318031,3240.0,3239.5,0.03086363]
[1736675232569,0.03318031,3240.0,3239.5,2.19165345]
[1736675232775,0.758,3240.1,3239.5,2.96015345]
[1736675232972,0.758,3240.1,3239.5,0.79936345]
[1736675233267,0.0075,3240.4,3239.8,2.16062]
[1736675233268,0.758,3240.4,3239.8,2.16062]
[1736675233475,0.758,3240.4,3239.9,2.19142019]
[1736675233705,0.03339933,3240.3,3239.9,2.19142019]
[1736675233921,0.03339933,3240.3,3239.9,2.16056]
[1736675234131,0.758,3240.7,3239.9,2.16056]
[1736675234422,1.37678518,3240.7,3239.9,2.16056]
[1736675234720,0.03344032,3240.6,3239.9,2.16049]
[1736675236223,0.758,3241.0,3240.1,2.6143365]
[1736675236381,0.758,3241.0,3240.2,2.16029]
[1736675236575,0.03349798,3240.9,3240.3,0.03085525]
[1736675236779,0.03349798,3240.9,3240.4,2.16019]
[1736675237227,0.03349798,3240.9,3240.4,2.6143365]
[1736675237431,0.03349798,3240.9,3240.5,2.16014]
[1736675237609,0.758,3241.2,3240.5,2.16014]
[1736675237924,0.03354181,3240.8,3240.5,2.16014]
[1736675238224,0.758,3241.2,3240.5,2.16014]
[1736675238423,0.758,3241.2,3240.3,2.16027]
[1736675238622,0.03344696,3241.1,3240.1,7.7747365]
[1736675238824,0.2951137,3241.0,3240.1,7.7747365]
[1736675239029,0.32841378,3241.0,3240.1,7.7747365]
[1736675239193,0.03330008,3241.0,3240.2,2.16034]
[1736675239407,2.91769,3241.2,3240.2,2.16034]
[1736675239636,0.03343537,3241.1,3240.2,2.16034]
[1736675239841,0.03343537,3241.1,3240.4,2.6143365]
[1736675240049,0.03343537,3241.1,3240.7,2.16002]
[1736675240521,0.758,3241.2,3240.7,2.16002]
[1736675240724,0.1670606,3241.3,3241.2,2.15969]
[1736675240905,0.1670606,3241.3,3241.2,2.95903546]
[1736675241092,0.1670606,3241.3,3241.2,2.92819]
[1736675241292,0.1670606,3241.3,3241.2,2.95903503]
[1736675241494,0.1670606,3241.3,3241.2,5.92819]
[1736675241939,0.1670606,3241.3,3241.1,2.6143365]
[1736675243393,0.1670606,3241.3,3241.1,2.64518738]
[1736675243640,0.1670606,3241.3,3241.1,2.64518698]
[1736675243947,0.1670606,3241.3,3241.1,2.64518696]
[1736675244738,0.1670606,3241.3,3241.1,2.6143365]
[1736675244908,0.1670606,3241.3,3241.1,4.7740565]
[1736675246242,0.1670606,3241.3,3241.2,2.15969]
[1736675247560,0.1670606,3241.3,3241.1,2.6143365]
[1736675248556,0.1670606,3241.3,3241.1,4.7740865]
[1736675249220,0.1670606,3241.3,3241.2,2.15969]
[1736675249605,0.1670606,3241.3,3241.2,2.19053868]
[1736675252038,0.1670606,3241.3,3241.2,2.15969]
[1736675252618,0.1670606,3241.3,3241.2,2.19053846]
[1736675252848,0.1670606,3241.3,3241.2,2.15969]
[1736675255764,0.1670606,3241.3,3241.2,2.19053845]
[1736675257564,0.1670606,3241.3,3239.6,3.8576495]
[1736675257565,0.0075,3240.2,3239.6,1.235813]
[1736675257962,0.0075,3240.1,3239.5,2.6143365]
[1736675258179,0.0075,3240.0,3239.5,2.6143365]
[1736675258392,0.0075,3239.9,3239.5,2.6143365]
[1736675258683,0.04183227,3239.9,3239.5,2.6143365]
[1736675262587,0.03433227,3239.9,3239.5,2.6143365]
[1736675262756,0.03433227,3239.9,3239.8,2.6143365]
[1736675263081,1.0288,3241.0,3240.0,2.16049]
[1736675263290,0.318861,3240.9,3240.2,2.6143365]
[1736675263497,0.34926827,3240.9,3240.2,2.6143365]
[1736675263698,0.03040727,3240.9,3240.5,2.6143365]
[1736675264250,0.03040727,3240.9,3240.5,4.7744865]
[1736675264474,0.03040727,3240.9,3240.6,2.19094446]
[1736675264669,0.9803606,3241.3,3240.6,2.19094446]
[1736675264871,1.17345032,3241.3,3240.8,2.6143365]
[1736675265295,1.14250848,3241.3,3240.8,2.6143365]
[1736675265494,0.1670606,3241.3,3240.8,2.6143365]
[1736675265712,0.1670606,3241.3,3240.2,8.33991]
[1736675265713,0.1670606,3241.3,3241.1,2.6143365]
[1736675265918,0.1670606,3241.3,3241.2,2.15969]
[1736675269917,0.1670606,3241.3,3241.2,2.1905387]
[1736675270306,0.1670606,3241.3,3239.6,0.8196]
[1736675270307,3.1399806,3241.3,3239.6,0.8196]
[1736675270492,3.1399806,3241.3,3239.9,2.6143365]
[1736675270493,2.16015,3240.6,3239.9,2.6143365]
[1736675270689,0.03094184,3240.5,3239.9,2.6143365]
[1736675270888,2.19219638,3240.5,3239.9,2.6143365]
[1736675271226,0.04594184,3240.8,3239.4,2.16083]
[1736675271227,0.03094184,3240.4,3239.4,4.7751665]
[1736675271379,2.1601,3240.6,3239.5,5.16081]
[1736675271699,0.07045753,3240.5,3239.5,5.16081]
[1736675271889,0.07045753,3240.5,3239.5,2.16081]
[1736675272286,0.07045753,3240.5,3239.5,5.16081]
[1736675272920,0.07045753,3240.5,3239.5,2.16081]
[1736675274157,2.19967569,3240.5,3239.5,2.16081]
[1736675274353,2.16766,3240.5,3239.5,2.16081]
[1736675274564,0.0316711,3240.4,3239.5,2.16081]
[1736675274943,2.16766,3240.5,3239.5,2.16081]
[1736675275144,0.03165274,3240.3,3239.5,2.16081]
[1736675275473,2.16766,3240.5,3239.5,2.16081]
[1736675275668,0.015,3240.6,3239.6,2.16075]
[1736675275872,0.03170489,3240.4,3239.6,3.16543123]
[1736675276072,0.03041737,3240.5,3240.0,5.32585123]